Cogmind - Beta 14 @@@ ROGUE MODE // 2024.08.25 @ 20:07:10 Player: Briefgarde Result: Destroyed by G-34 Mercenary with Small Laser Performance ------------- Evolutions (1) 500 Regions Visited (3) 600 Robots Destroyed (22) 110 Value Destroyed (598) 598 Prototype IDs (1) 20 Alien Tech Used (0) 0 Bonus (11) 11 TOTAL SCORE: 1839 Bonus ------- High Alert Combat Kills 11 Cogmind --------- Core Integrity 0/400 Matter 108/300 Energy 250/250 System Corruption 0% Temperature Cool (6) Movement Core (200) Ox3 Location -9/Storage Parts ------- > --- POWER (1) -------- Ion Engine > --- PROPULSION (2) --- (None) > --- UTILITY (4) ------ Small Storage Unit Signal Interpreter Improved Terrain Scan Processor > --- WEAPON (2) ------- Scythe > --- INVENTORY (8) ---- Light Treads Improved Treads Improved Light Armor Plating Assault Rifle Light Cannon Grenade Launcher Peak State ------------ > --- POWER ------------ Improved Ion Engine > --- PROPULSION ------- Improved Treads Wheel > --- UTILITY ---------- Small Storage Unit Signal Interpreter Improved Terrain Scan Processor Improved Light Armor Plating > --- WEAPON ----------- Improved Assault Rifle Improved Assault Rifle > --- INVENTORY -------- Ion Engine Ion Engine Light Treads Improved Treads Improved Light Armor Plating Assault Rifle Light Cannon Grenade Launcher [Rating: 20] Favorites ----------- Power Light Ion Engine Engine Light Ion Engine Propulsion Wheel Treads Light Treads Wheel Wheel Utility Small Storage Unit Storage Small Storage Unit Processor Signal Interpreter Protection Improved Light Armor Plating Weapon Improved Assault Rifle Ballistic Gun Improved Assault Rifle Launcher Grenade Launcher Slashing Weapon Scythe Build | -11 -10 -9 -9 ------- Run | Yrd Mat Mat Sto Slots Evolved 2 | . . 2 . Power . | . . . . Propulsion . | . . . . Utility 2 | . . 2 . Weapon . | . . . . Parts Attached 24 | 6 3 13 2 Power 3 | 1 . 1 1 Engine 3 | 1 . 1 1 Core . | . . . . Reactor . | . . . . Propulsion 5 | 2 1 2 . Treads 2 | 1 . 1 . Leg . | . . . . Wheel 3 | 1 1 1 . Hover . | . . . . Flight . | . . . . Utility 7 | 1 1 5 . Device . | . . . . Storage 1 | 1 . . . Processor 3 | . 1 2 . Hackware . | . . . . Protection 3 | . . 3 . Artifact . | . . . . Weapon 9 | 2 1 5 1 Energy Gun . | . . . . Energy Cannon . | . . . . Ballistic Gun 7 | 2 1 4 . Ballistic Cannon . | . . . . Launcher 1 | . . 1 . Special Weapon . | . . . . Impact Weapon . | . . . . Slashing Weapon 1 | . . . 1 Piercing Weapon . | . . . . Special Melee Weapon . | . . . . Unidentified Prototypes 1 | . . 1 . Parts Lost 7 | . . 1 6 Power 1 | . . . 1 Propulsion 3 | . . 1 2 Utility 1 | . . . 1 Weapon 2 | . . . 2 Highest Loss Streak 6 | . . 1 6 To Critical Strikes . | . . . . Average Slot Usage (%) 94 | . 85 98 89 Engine 11 | . 14 11 10 Treads 11 | . 14 11 9 Wheel 11 | . 14 11 7 Storage 11 | . 14 11 11 Processor 17 | . 1 21 22 Protection 7 | . . 10 8 Ballistic Gun 20 | . 27 19 18 Launcher 1 | . . 2 . Peak Build Rating 20 | 6 7 20 20 Average Rating 13 | 4 6 15 17 On Entrance 8 | . 6 7 20 Naked Turns . | . . . . Heaviest Build 23 | 11 12 23 21 Greatest Support 23 | 20 20 23 23 Greatest Overweight (x) 1 | 1 1 1 . Average Overweight (x) . | . . . . Largest Inventory Capacity 8 | 8 8 8 8 Average Capacity 7 | 7 8 8 8 Most Carried 8 | 6 8 8 8 Average Carried 7 | 4 6 7 7 Final Capacity 8 | 8 8 8 8 Final Carried 8 | 6 8 8 6 Class Distribution -------------------- 100% | Mutant Dominant Class ---------------- Mutant | -10/Materials Mutant | -9/Materials Mutant | -9/Storage Resources | -11 -10 -9 -9 ----------- Run | Yrd Mat Mat Sto Matter Collected 617 | 171 171 232 43 Remotely . | . . . . Salvage Created 821 | . 121 417 283 Parts 54 | . 6 31 17 Haulers Intercepted 2 | . 1 1 . Recyclers Shooed . | . . . . Parts Field Recycled . | . . . . Retrieved Matter . | . . . . Parts Self-Destructed . | . . . . Prevented . | . . . . Kills | -11 -10 -9 -9 ------- Run | Yrd Mat Mat Sto Combat Hostiles Destroyed 17 | . 1 10 6 Melee 1 | . . . 1 Guns 13 | . 1 7 5 AOE 3 | . . 3 . Classes Destroyed 7 | . 3 4 . Worker 1 | . 1 . . Hauler 2 | . 1 1 . Recycler 1 | . . 1 . Operator 1 | . . 1 . Swarmer 4 | . . 4 . Grunt 7 | . 1 3 3 Sentry 6 | . . 3 3 Best Kill Streak 3 | . 2 3 2 Combat Bots Only 3 | . 1 3 2 Max Kills in Single Turn 2 | . 1 2 1 Gunslinging . | . . . . Exploded 1 | . . 1 . Melee 1 | . . . 1 Uniques/NPCs Destroyed . | . . . . Combat | -11 -10 -9 -9 -------- Run | Yrd Mat Mat Sto Hostile Shots Fired 156 | . 8 45 103 Missed 36 | . 2 16 18 Damage Taken 1591 | . 66 379 1146 Core 403 | . . 73 330 Absorbed by Shields . | . . . . Core Remaining (%) 100 | 100 100 . . Volleys Fired 62 | . 9 23 30 Largest 2 | . 2 2 2 Hottest 53 | . 40 53 46 Shots Fired 119 | . 18 44 57 Gun 112 | . 18 37 57 Cannon . | . . . . Launcher 7 | . . 7 . Special . | . . . . Kinetic 112 | . 18 37 57 Thermal . | . . . . Explosive 7 | . . 7 . Electromagnetic . | . . . . Robot Hit Streak 21 | . 6 12 21 Robot Miss Streak 2 | . 1 2 1 Penetration Max . | . . . . Secondary Targets 3 | . . . 3 Max Gunslinging Chain 1 | . . . 1 Shots Hit Robots 100 | . 13 26 61 Core Hits 38 | . 5 20 13 Critical Kills 1 | . . 1 . Critical Parts Destroyed . | . . . . Critical Strikes 2 | . . 1 1 Destroy 1 | . . 1 . Sever 1 | . . . 1 Melee Attacks 11 | . . . 11 Impact . | . . . . Slashing 11 | . . . 11 Piercing . | . . . . Sneak Attacks . | . . . . Combat Hostiles . | . . . . Follow-up Attacks . | . . . . Damage Inflicted 1829 | . 168 578 1083 Guns 1341 | . 168 370 803 Cannons . | . . . . Explosions 208 | . . 208 . Melee 280 | . . . 280 Ramming . | . . . . Kinetic 1341 | . 168 370 803 Thermal . | . . . . Explosive 208 | . . 208 . Electromagnetic . | . . . . Impact . | . . . . Slashing 280 | . . . 280 Piercing . | . . . . Highest Corruption . | . . . . Average Corruption . | . . . . Corruption Purged . | . . . . Corruption Blocked . | . . . . Overload Shots . | . . . . Overflow Damage 2 | . . . 2 Projectiles . | . . . . Explosions . | . . . . Melee 2 | . . . 2 Knockbacks . | . . . . Impact . | . . . . Kinetic . | . . . . Secondary . | . . . . Self-Inflicted Damage 39 | . . 39 . Shots 1 | . . 1 . Rammed . | . . . . Targets Rammed . | . . . . Kicked . | . . . . Crushed . | . . . . Highest Temperature 31 | . . 17 31 Average Temperature 9 | . . 6 10 Received Heat Transfer 693 | . 36 135 522 Siege Activations . | . . . . Robots Corrupted . | . . . . Combat Hostiles . | . . . . Parts Fried . | . . . . Impact Corruptions . | . . . . Robots Melted . | . . . . Combat Hostiles . | . . . . Parts Melted . | . . . . Heat Transferred . | . . . . Parts Sabotaged . | . . . . Parts Stolen . | . . . . Parts Stripped . | . . . . Power Chain Reactions . | . . . . Alert | -11 -10 -9 -9 ------- Run | Yrd Mat Mat Sto Peak Influence 432 | . 51 432 263 Initial 56 | . . 21 56 Average 180 | . 24 255 165 Maximum Alert Level 2 | . . 2 1 Low Security (%) 47 | 100 100 23 53 Level 1 47 | . . 68 46 Level 2 4 | . . 8 . Level 3 . | . . . . Level 4 . | . . . . Level 5 . | . . . . High Security . | . . . . Max Security . | . . . . Squads Dispatched 5 | . . 3 2 Investigation . | . . . . Extermination . | . . . . Reinforcement 5 | . . 3 2 Assault . | . . . . Garrison . | . . . . Intercept . | . . . . Searches Triggered . | . . . . Construction Impeded . | . . . . Haulers Reinforced . | . . . . Active Scanning Responses . | . . . . Cargo Convoy Interrupts . | . . . . Stealth | -11 -10 -9 -9 --------- Run | Yrd Mat Mat Sto Distress Signals 4 | . 1 3 . Communications Jammed . | . . . . Distress Signals . | . . . . Times Spotted 28 | . 5 16 7 Peak Tracking Total 5 | . 3 5 4 Tactical Retreats 3 | . . 2 1 Traps | -11 -10 -9 -9 ------- Run | Yrd Mat Mat Sto Traps Triggered . | . . . . Indirectly . | . . . . Trap Hack Attempts . | . . . . Triggered . | . . . . Disarmed . | . . . . Reprogrammed . | . . . . Reused . | . . . . Traps Extracted . | . . . . Installed . | . . . . Triggered . | . . . . Machines | -11 -10 -9 -9 ---------- Run | Yrd Mat Mat Sto Machines Disabled 1 | . . 1 . Max in Single Turn 1 | . . 1 . Machines Repaired . | . . . . Machines Dismantled . | . . . . Machines Sabotaged . | . . . . Overloaded Fab Kills . | . . . . Hacking | -11 -10 -9 -9 --------- Run | Yrd Mat Mat Sto Machines Accessed 5 | . 3 1 1 Terminals 4 | . 2 1 1 Fabricators . | . . . . Repair Stations . | . . . . Recycling Units 1 | . 1 . . Scanalyzers . | . . . . Garrison Access . | . . . . Total Hacks 6 | . 4 1 1 Successful 5 | . 4 1 . Failed 1 | . . . 1 Catastrophic 1 | . . . 1 Database Lockouts . | . . . . Manual . | . . . . Terminals 4 | . 2 1 1 Fabricators . | . . . . Repair Stations . | . . . . Recycling Units 2 | . 2 . . Scanalyzers . | . . . . Garrison Access . | . . . . Terminal Hacks 3 | . 2 1 . Locate Traps 1 | . 1 . . Hauler Manifests 1 | . 1 . . Zone Layout 1 | . . 1 . Fabricator Hacks . | . . . . Repair Station Hacks . | . . . . Recycling Unit Hacks 2 | . 2 . . Report Inventory 1 | . 1 . . Retrieve Components 1 | . 1 . . Scanalyzer . | . . . . Garrison Access Hacks . | . . . . Unauthorized Hacks . | . . . . Terminals . | . . . . Fabricators . | . . . . Repair Stations . | . . . . Recycling Units . | . . . . Scanalyzers . | . . . . Garrison Access . | . . . . Data Cores Recovered 1 | . . 1 . Used . | . . . . Hacking Detections 2 | . 1 . 1 Full Trace Events . | . . . . Feedback Events . | . . . . Feedback Blocked . | . . . . Robot Schematics Acquired . | . . . . Robots Built . | . . . . Authchips . | . . . . Time . | . . . . Total Robot Build Rating . | . . . . Part Schematics Acquired . | . . . . Parts Built . | . . . . Authchips . | . . . . Time . | . . . . Total Part Build Rating . | . . . . Parts Repaired . | . . . . Time . | . . . . Parts Recycled . | . . . . Recycled Matter . | . . . . Retrieved Matter . | . . . . Retrieved Components 3 | . 3 . . Parts Scanalyzed . | . . . . Part Schematics Acquired . | . . . . Parts Damaged . | . . . . Bothacking | -11 -10 -9 -9 ------------ Run | Yrd Mat Mat Sto Used RIF Installer . | . . . . Robots Hacked . | . . . . Non-combat . | . . . . Combat . | . . . . Robot Hacks Applied . | . . . . Relay Couplers Released . | . . . . Fabnet Peak Effective % . | . . . . Robots Rewired . | . . . . Allies Hacked . | . . . . Hacks Repelled . | . . . . Allies | -11 -10 -9 -9 -------- Run | Yrd Mat Mat Sto Total Allies . | . . . . Largest Group . | . . . . Highest-Rated Group . | . . . . Highest-Rated Ally . | . . . . Total Orders . | . . . . Ally Attacks . | . . . . Total Damage . | . . . . Kills . | . . . . Allies Corrupted . | . . . . Allies Melted . | . . . . Intel | -11 -10 -9 -9 ------- Run | Yrd Mat Mat Sto Robot Analysis Total . | . . . . Derelict Logs Recovered . | . . . . Drone Launches . | . . . . Drone Recoveries . | . . . . Exploration | -11 -10 -9 -9 ------------- Run | Yrd Mat Mat Sto Turns Passed 1384 | 70 284 800 230 Spaces Moved 748 | 44 181 461 62 Core 1 | 1 . . . Treads 549 | 26 110 351 62 Legs . | . . . . Wheels 198 | 17 71 110 . Hover . | . . . . Flight . | . . . . Fastest Speed 50 | 50 95 95 160 Average Speed 142 | 128 134 145 160 Slowest Speed 240 | 160 160 240 160 Overloaded Moves . | . . . . Propulsion Burnouts . | . . . . Robots Hopped . | . . . . Cave-ins Triggered . | . . . . Exploration Rate (%) 23 | 5 34 34 19 Regions Visited 3 Branch Regions 1 Pre-discovered Areas . | . . . . Known Exits Taken 2 | . 1 1 . Unknown Exits Taken 1 | 1 . . . Scrap Searched . | . . . . Spaces Dug 7 | . . 7 . Terrain Destroyed 47 | . . 47 . Melee . | . . . . Projectile . | . . . . AOE 47 | . . 47 . Terrain Rammed . | . . . . Walls Destroyed . | . . . . Machines Disabled . | . . . . Actions | -11 -10 -9 -9 --------- Run | Yrd Mat Mat Sto Total 926 | 55 204 548 119 Wait 57 | . 4 39 14 Move 745 | 43 180 460 62 Hop . | . . . . Pick Up 13 | 6 4 3 . Fast Attach 15 | 6 2 7 . Attach 3 | . . 1 2 Detach . | . . . . Swap 6 | . 1 5 . Drop 14 | . 4 10 . Fire 62 | . 9 23 30 Melee 11 | . . . 11 Ram . | . . . . Kick . | . . . . Crush . | . . . . Escape Stasis . | . . . . Rewire . | . . . . Trap . | . . . . Miscellaneous . | . . . . Route ------- -11/Scrapyard -10/Materials -9/Materials -9/Storage History --------- Turn | Location | Event 19 | -11/Scrapyard | Discovered new exit (range 16) 71 | -11/Scrapyard | Entered Materials 303 | -10/Materials | Build established: Mutant 319 | -10/Materials | Discovered new exit (range 3) 353 | -10/Materials | Identified exit to Materials 355 | -10/Materials | Entered another Materials area 355 | -9/Materials | Evolved 2 slots: Utility x2 373 | -9/Materials | Discovered new exit (range 16) 1153 | -9/Materials | Identified exit to Storage 1155 | -9/Materials | Entered Storage 1342 | -9/Storage | Core integrity fell below 50% 1362 | -9/Storage | Core integrity fell below 20% 1385 | -9/Storage | Destroyed by G-34 Mercenary with Small Laser Last Messages --------------- 01316_ Wheel destroyed. 01316_ Critical hit (Burn: +37). 01318_ Y-45 Defender destroyed. 01318_ Switching to secondary target: Y-45 Defender. 01320_ K-01 Serf collects debris. 01322_ Imp. Ion Engine destroyed. 01325_ K-01 Serf collects debris. 01332_ R-06 Scavenger collects Ion Engine. 01334_ Imp. Light Armor Plating destroyed. 01335_ K-01 Serf collects debris. 01342_ Destroyed Lgt. Armor Plating. 01346_ Imp. Treads destroyed. 01349_ Imp. Assault Rifle destroyed. 01361_ Critical hit (Burn: +37). 01368_ Y-45 Defender destroyed. 01369_ ALERT: Hostiles spotted, dispatching reinforcements to Terminal S008. 01380_ Destroyed Ion Engine. 01383_ G-34 Mercenary Aluminum Leg severed. Map ----- +----------------------------------------------------+ | ????????????????????????????????? | | ????????????????????????????????? | | ????????????????????????????????? | | ????????????????????????????????? | | ????????????????????????????????? | | ????????????????????????????????? | | ????????????????????????????????? | | ????????????????????????????????? | | ????????????????????????????????? | | ????????????????????????????????? | | ????????????????????????????????? | | ????????????????????????????????? | | ????????????????????????????????? | | ????????????????????????????????? | | ????????????????????????????????? | | ????????????????????????????????? | | ???????????????????? ???????????? | | ???????????????????? ???????????? | | ???????????????????? ???????????? | | ???????????????????? ???????????? | | ???????????????????? ?????""????? | | ???????????????????? ????? """"?? | | ???????????????????? ????? ??? | | ???????????????????# #????![ ???? | | ???????????????????# #??##+#####? | | ???????????????????# ####@%! # | | ???????????????????# !g%[* # | | ???????????????????# m#! # | | ???????????????????# # # | | ???????????????????# ######### | | ????????????????####+##+##??????? | | ????????????????# #??????? | | ????????????????# """" #??????? | | ????????????????# ""??? #??????? | | ????????????????# ""???? #??????? | | ????????????????# "????" #??????? | | ????????????????# "???" #??????? | | ???????#T###+#### """" #??????? | | ?? + #??????? | | ????# # =[ #??????? | | ????# #####+####??????? | | ????+ % #????????? | | ????# ###/######## #????????? | | ????# ??? ????????# #????????? | | ????????# ?????????# #????????? | | ???????# ??????????# #????????? | | ???????#???????????# #????????? | | ???????????????????# #????????? | | ???????????????????# ########?? | | ???????????????????# ##"""""#?? | +----------------------------------------------------+ Best States ------------- Heat Dissipation 28 Energy Generation 12 Energy Capacity 265 Matter Stores 300 Matter Capacity 300 Sight Range 16 Terrain Scan Density 110 Armor Coverage 150 Evasion (%) 44 Recoil Reduction 1 Item Schematics ----------------- None Robot Schematics ------------------ None Fabricated ------------ Nothing Alien Tech Used ----------------- None Achievements -------------- None Challenges ------------ None Game ------ Seed ConstructStasisChainsword Manual? 0 Play Time 00:16:21 Cumulative 37.5 hours Start 2024.08.25 @ 19:52:54 End 2024.08.25 @ 20:07:10 Sessions 1 Manual Loads 0 Difficulty Rogue Special Mode None Game No. 25 Rogue 25 Adventurer 0 Explorer 0 Win Type - Total 0 Types 0/0/0/0/0/0/0/0/0 Lore% 14 Gallery% 27 Achievement% 22 Wizard Run 0 Options --------- Layout 1 ASCII 0 Keyboard 0 Movement Mouse Keybinds 0 Fullscreen 1 Font 48/Smallcaps Map View 50x35 Zoom Use 0% Tactical HUD 1 Map Filters NONE Filters NONE Steam 1 RUN: e0e31232-5e5d-4123-885f-5fa97f212c2b